Workbook

Sheet Main BuildingFF&E
A1: Balsam House Resort
A2: Chestertown, New York
A4: Costs Main building
H5: IDA exemption
A6: FF&E for rooms | B6: 48 | C6: no. | D6: u/m | E6: cost | F6: subtotal | G6: freight | H6: sales tax | I6: total
A7: queen beds / frame , headboard | C7: 48 | D7: ea | E7: 2000 | F7: =C7*E7 -> 96000 | G7: =F7*0.08 -> 7680 | I7: =F7+G7+H7 -> 103680
A8: fabric for headboards | B8: 8 | C8: =C7*B8 -> 384 | D8: yds | E8: 27 | F8: =C8*E8 -> 10368 | G8: =F8*0.08 -> 829.44 | I8: =F8+G8+H8 -> 11197.44
A9: wardrobe | C9: 48 | D9: ea | E9: 1200 | F9: =C9*E9 -> 57600 | G9: =F9*0.08 -> 4608 | I9: =F9+G9+H9 -> 62208
A10: dressers | C10: 48 | D10: ea | E10: 750 | F10: 36000 | G10: 2880 | I10: 38880
A11: lounge chair | C11: 48 | D11: ea | E11: 675 | F11: 32400 | G11: 2592 | I11: 34992
A12: fabric for lounges | B12: 7 | C12: =C11*B12 -> 336 | D12: yds | E12: 25 | F12: 8400 | G12: 672 | I12: 9072
A13: occaisonal table | C13: 48 | D13: ea | E13: 575 | F13: 27600 | G13: 2208 | I13: 29808
A14: side chairs | B14: 2 | C14: =C13*B14 -> 96 | D14: ea | E14: 375 | F14: 36000 | G14: 2880 | I14: 38880
A15: side table | C15: 48 | D15: ea | E15: 400 | F15: 19200 | G15: 1536 | I15: 20736
A16: bedside tables | C16: 96 | D16: ea | E16: 400 | F16: 38400 | G16: 3072 | I16: 41472
A17: bedside lamps | C17: 96 | D17: ea | E17: 500 | F17: 48000 | G17: 3840 | I17: 51840
A18: area rugs large | C18: 48 | D18: ea | E18: 1000 | F18: 48000 | G18: 3840 | I18: 51840
A19: artwork | C19: 50 | D19: ea | E19: 150 | F19: 7500 | G19: 600 | I19: 8100
A20: safe | C20: 48 | D20: ea | E20: 385 | F20: 18480 | G20: 1478.4 | I20: 19958.4
A21: sofa | C21: 24 | D21: ea | E21: 2500 | F21: 60000 | G21: 4800 | I21: 64800
A22: fabric for sofa | B22: 14 | C22: =B22*C21 -> 336 | D22: yds | E22: 28 | F22: 9408 | G22: 752.64 | I22: 10160.64
A23: wallcovering | B23: 30 | C23: =B23*48 -> 1440 | D23: yds | E23: 30 | F23: 43200 | G23: 3456 | I23: 46656
A24: bedding | B24: 48 | C24: 48 | D24: ea | E24: 75 | F24: =C24*E24 -> 3600 | G24: 288 | I24: =F24+G24+H24 -> 3888
A25: pillows | B25: 6 | C25: =B24*B25 -> 288 | D25: ea | E25: 7.5 | F25: =C25*E25 -> 2160 | G25: 172.8 | I25: =F25+G25+H25 -> 2332.8
A26: bath accessories | C26: 48 | D26: lot | E26: 65 | F26: =C26*E26 -> 3120 | G26: 249.6 | I26: =F26+G26+H26 -> 3369.6
A27: wall sconces | B27: 2 | C27: 48 | D27: ea | E27: 400 | F27: =C27*E27*B27 -> 38400 | G27: 3072 | I27: 41472
A28: luggage rack | C28: 48 | D28: ea | E28: 50 | F28: 2400 | G28: 192 | I28: 2592
A29: Outdoor deck furniture | C29: 13 | D29: sets | E29: 1500 | F29: 19500 | G29: 1560 | I29: 21060
A30: floor lamps | C30: 48 | D30: ea | E30: 1200 | F30: 57600 | G30: 4608 | I30: 62208
A31: window treatments | C31: 96 | D31: ea | E31: 1100 | F31: 105600 | G31: 8448 | I31: 114048
A32: fabric for draperies | B32: 16 | C32: =B32*C31 -> 1536 | D32: yds | E32: 40 | F32: =C32*E32 -> 61440 | G32: 4915.2 | I32: =F32+G32+H32 -> 66355.2
A34: totals | F34: =SUM(F7:F33) -> 890376 | G34: =SUM(G7:G33) -> 71230.08 | I34: =SUM(I7:I33) -> 961606.08
A36: total per room | C36: 48 | I36: =I34/C36 -> 20033.46
A38: FF&E Dining/bistro bar/lobby/outdoor

Sheet development summary
A1: Balsam House Resort
A3: Development Budget
A4: 2025-02-04
A5: Prepared by DiGuiseppe, reviewed by Frank P. Ellis
A6: Description | C6: s/f | D6: cost | E6: construction only | F6: FF&E only
A8: Building and land ppraisal | D8: Owners equity to be determined | E8: 6800000
A9: Main Construction (hotel,conference,pool) | D9: ='Square footages'!D71 -> 16681830 | E9: =D9 -> 16681830
A10: Cabins Construction ( eliminate from development) | D10: =Cabins!G23 -> -2050500 | E10: =D10 -> -2050500
A11: Employee Housing | D11: ='Employee Housing'!D18 -> 732000 | E11: =D11 -> 732000
A12: Lakehouse | D12: 73500 | E12: ='Lakefront work'!D16 -> 65750
A13: geothermal | D13: 750000 | E13: 750000
A14: Site work, roads and features | D14: 600000 | E14: =D14 -> 600000
A15: wells | D15: 55000 | E15: =D15 -> 55000
A16: septic | D16: 85000 | E16: 85000
A17: Approvals | D17: 50000
A18: FF&E Main hotel | D18: ='Main BuildingFF&E'!I34 -> 961606.08 | F18: =D18 -> 961606.08
A19: FF&E Cabins (10) | D19: =Cabins!Q31 -> -303696 | F19: -303696
A20: FF&E employee housing | D20: ='Employee Housing'!D19 -> 125000 | F20: 125000
A21: FF&E pool Outdoor furniture | D21: 150000 | F21: 150000
A22: FF&E lake house outdoor furniture | D22: ='Lakefront work'!D18 -> 10000 | F22: 10000
A23: materials on site | D23: -250000 | E23: =D23 -> -250000
A24: exterior renovation fall 2023 | D24: -256000 | E24: =D24 -> -256000
A25: Subtotal | D25: =SUM(D9:D24) -> 17413740.08 | E25: =SUM(E9:E24) -> 16413080
A27: Professional fee & soft costs | D27: ='Professional fees'!F15 -> 1386593.817
A28: total of FF&E | F28: =SUM(F18:F27) -> 942910.08
A29: Admin fees | D29: 10000
A30: Legal | D30: 50000
A31: inventory/ operating equipment | D31: 225000
A32: tech services & systems | D32: 75000
A33: pre-opening/ Marketing | D33: 300000
A34: insurance | D34: 25000
A35: IDA tax exemption | D35: 0 | E35: sales ax on purchases, property,
A36: working capital | D36: 475000 | E36: 4.5% of the gross sales
A37: Upstate Revitalization Initiative grant | D37: -4500000 | E37: after property opens
A39: development total | D39: =SUM(D25:D38) -> 15460333.9
A40: Realized development cost | D40: =SUM(D39:D39) -> 15460333.9
A42: financing costs
A43: 40% debt | D43: =0.4*D40 -> 6184133.559
A44: misc. closing costs | D44: 20000
A45: lender fees based on 40% debt | C45: 0.01 | D45: =0.01*D43 -> 61841.33559
A47: total owners equity | C47: 0.6 | D47: =D40-D43 -> 9276200.338
A48: equity owner share # 1 | D48: TBD
A49: property and building value | D49: 5770000
A50: total owners equity | D50: TBD
A51: Equity owner share # 2 | D51: TBD

Sheet Professional fees
B2: % | E2: cost | F2: fee
A3: Professional fees/ consultants
A4: Architect | B4: 0.025 | C4: of construction cost | E4: ='development summary'!E25 -> 16413080 | F4: =B4*E4 -> 410327
A5: Interior Design | B5: 0.1 | C5: of FFE costs | E5: ='development summary'!F28 -> 942910.08 | F5: =B5*E5 -> 94291.008
A6: Procurement of FF&E | B6: 0.08 | C6: of FFE costs | E6: ='development summary'!F28 -> 942910.08 | F6: =B6*E6 -> 75432.8064
A7: Structual Engineering/ MEP | B7: 0.01 | C7: of construction cost | E7: =E4 -> 16413080 | F7: =B7*E7 -> 164130.8
A8: Developers fee | B8: 0.03 | E8: ='development summary'!D25 -> 17413740.08 | F8: =B8*E8 -> 522412.2024
A9: Geothermal evaluation | B9: 1 | E9: 25000 | F9: =E9 -> 25000
A10: Kitchen consultant | B10: 1 | E10: 25000 | F10: 25000
A11: Spa consultant | B11: 1 | E11: 20000 | F11: 20000
A12: Branding / marketing onsultant | B12: 1 | E12: 30000 | F12: 30000
A13: Landscape design | B13: flat fee | E13: 20000 | F13: 20000
A15: total soft costs | F15: =SUM(F4:F14) -> 1386593.817

Sheet Lakefront work
A1: Lakefront
A3: Construction | D3: total
A4: Gazebo renovation | B4: budget | D4: 5000
A5: Lakehouse
A6: Electrical | D6: 10000
A7: water | D7: 15000
A8: flooring | D8: 5000
A9: painting | D9: 3000
A10: heating | D10: 2500
A11: window glass removable | D11: 3750
A12: cooking set up | D12: 4000
A13: roof repair | D13: 3000
A14: finished roof floor | D14: 4500
A15: wharf enlargment / repair | D15: 10000
A16: subtotal | D16: =SUM(D4:D15) -> 65750
A18: FF&E budget | D18: 10000

Sheet Phase 1
A1: Phase One construction work
A3: 2023-08-02
A5: Balsam House
A6: 477 Atateka Drive
A7: Chestertown, NY
A9: item | B9: trade | C9: vendor | D9: Location | E9: time | F9: bid cost | G9: accepted cost | H9: deposit | I9: date of wire | J9: payment | K9: notes | L9: balance | M9: payments
A10: siding, tyvek, removals | B10: carpentry | C10: JF Construction | D10: Kingston, staying onsite | E10: 10-12 wks | F10: 160000 | G10: 160000 | H10: 10000 | I10: 2023-08-25 | L10: =G10-H10 -> 150000 | M10: weekly
A11: painting | B11: painter | C11: JF Construction | D11: Kingston, staying onsite | E11: 10-12 wks | F11: inc | H11: 13636.36 | L11: -13636.36 | M11: weekly
A12: masonry of chimney | B12: mason | C12: JF Construction | D12: Kingston, staying onsite | E12: 10-12 wks | F12: inc | L12: 0 | M12: weekly
A15: electrical | B15: electrican | C15: Terry Weaver III | D15: Coxsackie, staying on site | E15: 1 week | F15: 14500 | G15: 14500 | H15: 14500 | I15: 2023-08-24 | L15: 0
A16: site work | B16: excavator/ landspace/ tree work | C16: Papa Bear Tree service | D16: Stone Ridge, uncle in Chester area | E16: 2 weeks | F16: 33000 | L16: 0
A17: landscape | C17: Martin | G17: 1300 | H17: 1300 | I17: cash
A18: addition | B18: carpentry, roofing, masonry | C18: Trintite Constrction | D18: Newburgh | E18: Phase 2 | F18: 799900 | L18: 0
A19: plumbing | B19: plumber | C19: Trintite Constrction | D19: Newburgh | E19: 4 days | F19: 5000 | G19: 5000 | H19: 2500 | I19: 2023-09-01 | J19: 2500 | K19: 2023-09-20 | L19: 2500 | M19: weekly
A20: roofing | B20: Membrane roofing | C20: 3 Bros Roofing | D20: Warrensburg | E20: 2 weeks | F20: 15400 | G20: 15400 | H20: 8400 | I20: 2023-08-23 | J20: 7000 | K20: 2023-09-25 | L20: =G20-H20 -> 7000 | M20: upon completion
A21: roofing | B21: additional work on roof | C21: 3 Bros Roofing | D21: Warrensburg | E21: 2 weeks | F21: 4000 | G21: 4000 | H21: 4000 | I21: 2023-09-23 | L21: =G21-H21 -> 0
A22: Feasibility Study | B22: consultting | C22: HVS consultting | D22: Buffalo | E22: 48 days | F22: 11000 | G22: 11000 | H22: 5500 | I22: paid by check | L22: =G22-H22 -> 5500 | M22: upon completion
A23: Geothermal | B23: initial investigation and evaluation | C23: Altren Energy | D23: Accord | F23: 7500 | L23: 0
A24: geothermal | B24: feasibility | C24: Altren Energy | D24: Accord | F24: 25000 | L24: 0
A25: geothermal | B25: tax credit and incentives | C25: Altren Energy | D25: Accord | F25: 4750 | L25: 0
A26: dumpster | B26: trash removal | C26: casella | D26: Warrensburg | F26: 1149.33 | G26: 1149.33 | H26: =F26 -> 1149.33 | I26: paid by CC | L26: 0
A27: 2nd dumpster | B27: trash removal | C27: caselle | D27: Warrensburg | F27: 1149.33 | G27: 1149.33 | H27: 1149.33 | I27: paid by cc
A28: materials for elctrical | L28: =F32-G32 -> 0 | M28: paid 8/21
A29: 3rd dumpster | B29: trash removal | C29: casella | G29: 1149.33 | H29: 1149.33 | I29: paid by cc
J31: sales tax
B32: materials for electrical | E32: 4586 | F32: 4586 | G32: 4586 | H32: 2023-08-18 | J32: =G32*0.08 -> 366.88
A33: materials for carpentry | C33: Home depot | G33: 4926.1 | H33: 4926.1 | I33: 2023-08-23 | J33: =G33*0.08 -> 394.088 | M33: paid 8/24
A34: paint etc | C34: HD | G34: 98.48 | J34: =G34*0.08 -> 7.8784
A35: lumber and mortar, Zip | C35: HD | G35: 1471.14 | J35: 117.6912
A36: shells for nail gun | C36: HD | G36: 87.1 | J36: 6.968
A37: moldings | C37: HD | G37: 77.61 | J37: 6.2088
A38: led spot lights for sign | C38: HD | G38: 97.01 | J38: 7.7608
A39: caarpentry supplies | C39: HD | G39: 520.8 | J39: 41.664
A40: paint etc | C40: HD | G40: 704.76 | J40: 56.3808
A41: lumber | C41: HD | G41: -134.94 | J41: -10.7952
A42: paint etc | C42: HD | G42: 950.75 | J42: 76.06
A43: paint etc | C43: HD | G43: 528.57 | J43: 42.2856
A44: wood filler, paint, sanding dics | C44: HD | G44: 238.76 | J44: 19.1008
A45: Lumber | C45: Murphys | G45: 1933.35
A46: moldings | C46: Murphys | G46: 2666.35
A47: lumber for trim | C47: Murphys | G47: 1189.76
A48: lumber for trim | C48: Murphys | G48: 945.75
A49: lumber for trim | C49: Murphys | G49: 203.09
A50: lumber | C50: Murphys | G50: 2869.44
A51: lumber for trim | C51: Murphys | G51: 1078.4
A52: crown moldings for exterior | C52: Murphys | G52: 639.86
A53: furring strips and cement | C53: HD | G53: 313.98 | J53: =G53*0.08 -> 25.1184
A54: Zip, nails, mason mix furring strip | C54: hd | G54: -1567.4 | J54: -125.392
A55: materials for stone | C55: Champlain stone | G55: 7800
A56: freight for stone | C56: Cs trucking | G56: 650
A57: freight for stone 2nd | C57: Home Depot | G57: 650 | I57: 2023-08-23 | J57: =G57*0.08 -> 52 | M57: paid 8/24
A58: painting supplies | C58: HD | G58: 982.44 | J58: 78.5952
A59: materisl and dishwasher | C59: Home Depot | D59: Ulster County HD | G59: 1370.91 | J59: 109.6728
A60: refubd | C60: HD | G60: -19.78 | J60: -1.5824
A61: paint and hardware | C61: HD | G61: 601.7 | J61: 48.136
A62: Refund | B62: h | C62: hd | G62: -385.17 | J62: -30.8136
A63: cinstruction variuos | C63: HD | G63: 1146.25 | J63: 91.7
A64: refund | C64: HD | G64: -296.32 | J64: -23.7056
A65: Staples etc | C65: HD | G65: 178.92 | J65: 14.3136
A66: apt supplies | C66: HD | G66: 32.18 | J66: 2.5744
A67: paint primer, caulking | C67: HD | G67: 1370.91 | J67: 109.6728
A68: nails | C68: Loews | G68: 83.14 | J68: 6.6512
A69: primer and load shots for gun | C69: HD | G69: 256.02
A70: paint brushes | C70: HD | G70: 71.11
A71: lumber | C71: Murphys | G71: 978.94
A72: moldings, lumber , paintin supplies | C72: HD | G72: 1168.57
I74: total sales tax | J74: =SUM(J32:J73) -> 1489.112
A77: plumbing supplies | B77: Trintite, paid in cash | C77: ACE hardware | G77: 100
G79: =SUM(G10:G78) -> 255812.53 | L79: =SUM(L10:L33) -> 151363.64
A80: subtotal
A81: Reimbursables | G81: 2321.33
A82: less retainer | B82: project management | G82: -7500
I83: 2023-08-24
M84: paid 8/24
A85: Total | B85: labor plus materials
A86: Project Management | B86: construction management | C86: DiGuiseppe | G86: =0.2*G79 -> 51162.506

Sheet Employee Housing
A1: Barn Renovation
A2: Employee Housing
A3: Construction | B3: sf | C3: cost/ sf | D3: total | E3: notes
A4: flooring | B4: 4550 | C4: 15 | D4: =B4*C4 -> 68250 | E4: wood floors
A5: structure | B5: 4550 | C5: 75 | D5: =B5*C5 -> 341250 | E5: reno barn
A6: windows | D6: 30000 | E6: pella budget
A7: common bathrooms | B7: 2 | C7: 15000 | D7: =B7*C7 -> 30000 | E7: men/ women
A8: plumbing | D8: 25000 | E8: kitchen and bath
A9: electrical | D9: 25000 | E9: line runs to barn already
A10: carpentry | D10: 100000
A11: doors and trim | D11: 10000
A12: site work | D12: 10000 | E12: roads and clearing
A13: septic | D13: 12000 | E13: one system
A14: well/ water | D14: 7500 | E14: new well
A15: kitchen, common | D15: 25000 | E15: open type
A16: HVAC | D16: 30000
A17: Insulation | D17: 18000 | E17: spray closed cell foam
A18: total construction | D18: =SUM(D4:D17) -> 732000
A19: FF&E 20 rooms | B19: 20 | C19: 7500 | D19: 125000
A20: construction / sf | D20: =D18/B4 -> 160.8791209

Sheet Cabins
A1: Cabins
A2: 10000 sq. ft each
P3: IDA exemption
A4: Construction costs | B4: no. | C4: cost | D4: subtotal | E4: freight | F4: sales tax | G4: total | I4: FF& E for cabin | K4: no. | L4: u/m | M4: cost | N4: subtotal | O4: freight | P4: sales tax | Q4: total
A5: excavation/ site clearing | B5: 10 | C5: 7500 | D5: =B5*C5 -> 75000 | E5: 0 | G5: =SUM(C5:F5) -> 82500 | I5: queen beds / frame , headboard | K5: 20 | L5: ea | M5: 1500 | N5: =K5*M5 -> 30000 | O5: =N5*0.08 -> 2400 | Q5: =N5+O5+P5 -> 32400
A6: foundation | B6: 10 | C6: 15000 | D6: 150000 | E6: 0 | G6: 165000 | I6: wardrobe | K6: 20 | L6: ea | M6: 800 | N6: =K6*M6 -> 16000 | O6: =N6*0.08 -> 1280 | Q6: 17280
A7: carpentry | B7: 10 | C7: 30000 | D7: 300000 | E7: 0 | G7: 330000 | I7: dressers | K7: 20 | L7: ea | M7: 550 | N7: 11000 | O7: 880 | Q7: 11880
A8: Metal roofing | B8: 10 | C8: 15000 | D8: 150000 | E8: 150 | G8: 165150 | I8: lounge chair | K8: 20 | L8: ea | M8: 400 | N8: 8000 | O8: 640 | Q8: 8640
A9: gutters and leaders | B9: 10 | C9: 2500 | D9: 25000 | E9: 0 | G9: 27500 | I9: fabric for lounges | K9: 140 | L9: yds | M9: 25 | N9: 3500 | O9: 280 | Q9: 3780
A10: wood flooring | B10: 10 | C10: 8500 | D10: 85000 | E10: 250 | G10: 93750 | I10: dining table | K10: 10 | L10: ea | M10: 800 | N10: 8000 | O10: 640 | Q10: 8640
A11: bathrooms | B11: 20 | C11: 15000 | D11: 300000 | E11: 0 | G11: 315000 | I11: dining chairs | K11: 40 | L11: ea | M11: 300 | N11: 12000 | O11: 960 | Q11: 12960
A12: decking | B12: 10 | C12: 5000 | D12: 50000 | E12: 175 | G12: 55175 | I12: side board | K12: 10 | L12: ea | M12: 450 | N12: 4500 | O12: 360 | Q12: 4860
A13: hot tub | B13: 10 | C13: 13000 | D13: =B13*C13 -> 130000 | E13: 0 | G13: 143000 | I13: club chairs | K13: 20 | L13: ea | M13: 675 | N13: 13500 | O13: 1080 | Q13: 14580
A14: windows | B14: 10 | C14: 7500 | D14: =B14*C14 -> 75000 | E14: 250 | G14: 82750 | I14: fabric for clubs | K14: 140 | L14: yds | M14: 25 | N14: 3500 | O14: 280 | Q14: 3780
A15: doors | B15: 10 | C15: 3500 | D15: 35000 | E15: 75 | G15: 38575 | I15: coffee table | K15: 20 | L15: ea | M15: 400 | N15: 8000 | O15: 640 | Q15: 8640
A16: marble/ tile | B16: 10 | C16: 7500 | D16: 75000 | E16: 300 | G16: 82800 | I16: fireplace tools | K16: 10 | L16: ea | M16: 150 | N16: 1500 | O16: 120 | Q16: 1620
A17: fireplace, stone | B17: 10 | C17: 7500 | D17: 75000 | E17: 0 | G17: 82500 | I17: bedside tables | K17: 40 | L17: ea | M17: 375 | N17: 15000 | O17: 1200 | Q17: 16200
A18: hardware | B18: 10 | C18: 500 | D18: 5000 | E18: 0 | G18: 5500 | I18: bedside lamps | K18: 40 | L18: ea | M18: 300 | N18: 12000 | O18: 960 | Q18: 12960
A19: septic | B19: 6 | C19: 15000 | D19: 90000 | E19: 0 | G19: 105000 | I19: area rugs small | K19: 20 | L19: ea | M19: 600 | N19: 12000 | O19: 960 | Q19: 12960
A20: water | B20: 10 | C20: 7500 | D20: 75000 | E20: 0 | G20: 82500 | I20: area rugs large | K20: 10 | L20: ea | M20: 1000 | N20: 10000 | O20: 800 | Q20: 10800
A21: generator | B21: 5 | C21: 5000 | D21: 25000 | E21: 0 | G21: 30000 | I21: outdoor bench | K21: 10 | L21: ea | M21: 600 | N21: 6000 | O21: 480 | Q21: 6480
A22: geothermal/ radiant | B22: 10 | C22: 15000 | D22: 150000 | E22: 0 | G22: 165000 | I22: outdoor lounges | K22: 20 | L22: ea | M22: 750 | N22: 15000 | O22: 1200 | Q22: 16200
A23: subtotal | C23: =SUM(C5:C22) -> 180500 | D23: =SUM(D5:D22) -> 1870000 | G23: =-SUM(C23:F23) -> -2050500 | I23: outdoor coffee table | K23: 10 | L23: ea | M23: 350 | N23: 3500 | O23: 280 | Q23: 3780
A24: cost per sq. ft | B24: 10 | C24: 1000 | D24: =B24*C24 -> 10000 | G24: =G23/D24 -> -205.05 | I24: outdoor recliner | K24: 20 | L24: ea | M24: 600 | N24: 12000 | O24: 960 | Q24: 12960
I25: server | K25: 10 | L25: ea | M25: 400 | N25: 4000 | O25: 320 | Q25: 4320
I26: artwork | K26: 50 | L26: ea | M26: 150 | N26: 7500 | O26: 600 | Q26: 8100
I27: safe | K27: 20 | L27: ea | M27: 385 | N27: 7700 | O27: 616 | Q27: 8316
I28: sofa | K28: 20 | L28: ea | M28: 2500 | N28: 50000 | O28: 4000 | Q28: 54000
I29: fabric for sofa | K29: 250 | L29: yds | M29: 28 | N29: 7000 | O29: 560 | Q29: 7560
I30: bedding | K30: 20 | L30: ea | M30: b
I31: totals | N31: =SUM(N5:N30) -> 281200 | O31: =SUM(O5:O30) -> 22496 | Q31: =-SUM(Q5:Q30) -> -303696
I33: total per cabin | K33: 10 | Q33: =Q31/K33 -> -30369.6

Sheet Square footages
A1: Basement | F1: 1st Floor | J1: 2nd floor | N1: 3rd floor | R1: 4th floor
A2: areas | B2: room # | C2: sf | D2: spa | F2: room # | G2: sf | J2: room # | K2: SF | N2: Room # | O2: SF | R2: Room # | S2: SF
A3: reception | C3: 368 | D3: 368 | F3: conference | G3: 4793 | J3: rm 201 | K3: 303 | N3: housekeeping | O3: 389 | P3: 389
A4: pedicure | C4: 124 | D4: 124 | F4: pool deck | G4: 10000 | J4: rm 202 | K4: 304 | N4: rm 301 | O4: 265
A5: office | C5: 190 | D5: 190 | F5: entry | G5: 485 | J5: rm 203 | K5: 258 | N5: rm 302 | O5: 248
A6: treatment room | C6: 140 | D6: 140 | F6: lobby | G6: 1201 | J6: rm 204 | K6: 275 | N6: rm 303 | O6: 279
A7: treatment room | C7: 140 | D7: 140 | F7: elevator | G7: 80 | H7: 80 | J7: rm 205 | K7: 228 | N7: rm 308 | O7: 326
A8: treatment room | C8: 140 | D8: =C8 -> 140
A9: treatment room | C9: 140 | D9: =C9 -> 140
A10: treatment room | C10: 140 | D10: =C10 -> 140
A11: couples room | C11: 200 | D11: =C11 -> 200
A12: salon | C12: 483 | D12: 483 | F12: office | G12: 95 | J12: rm 206 | K12: 258 | N12: rm 307 | O12: 232
A13: storage | C13: 65 | D13: 65 | F13: offices | G13: 243 | J13: rm 207 | K13: 230 | N13: rm 312 | O13: 248
A14: spa kitchen | C14: 200 | D14: 200 | F14: rm 101 | G14: 277 | J14: Stair 1 | K14: 101 | L14: 101 | N14: rm 313 | O14: 247
A15: bathroom | C15: 139 | D15: 139 | F15: rm 102 | G15: 275 | J15: rm 214 | K15: 228 | N15: rm 314 | O15: 242
A16: elevator | C16: 68 | F16: rm 103 | G16: 279 | J16: rm 213 | K16: 187 | N16: rm 304 | O16: 245
A17: room | C17: 161 | D17: 161 | F17: rm 104 | G17: 562 | J17: rm 212 | K17: 229 | N17: rm 309 | O17: 243
A18: wine cellar | C18: 215 | F18: rm 105 | G18: 229 | J18: rm 211 | K18: 217 | N18: rm 305 | O18: 240
A19: spa lounge entry | C19: 400 | D19: 400 | F19: rm 106 | G19: 229 | J19: rm 210 | K19: 236 | N19: rm 310 | O19: 239
A20: employee lounge w/ lockers | C20: 511 | F20: rm 107 | G20: 431 | J20: rm 208 | K20: 405 | N20: rm 311 | O20: 167
A21: fitness | C21: 400 | D21: 400 | F21: rm 111 | G21: 436 | J21: rm 215 | K21: 245 | N21: rm 306 | O21: 166
A22: retail | C22: 120 | D22: =C22 -> 120 | F22: rm 10 | G22: 229 | J22: rm 216 | K22: 273 | N22: rm 315 | O22: 188
A23: pump room | C23: 283 | F23: rm 109 | G23: 216 | J23: rm 217 | K23: 247 | N23: stair 2 | O23: 101 | P23: 101
A24: water supply | C24: 349 | F24: rm 108 | G24: 306 | J24: rm 218 | K24: 246 | N24: elev | O24: 67
A25: crawl space | C25: 319 | F25: room | G25: 69 | J25: rm 219 | K25: 252 | N25: stair 1 | O25: 101 | P25: 101
A26: mechancial | C26: 164 | F26: public bathrooms | G26: 470 | J26: rm 220 | K26: 285 | N26: corridor | O26: 1341
A27: lockers | C27: 410 | D27: =C27 -> 410 | F27: kitchen | G27: 670 | J27: stair 2 | K27: 123 | L27: 123 | N27: freight elev | O27: 62 | P27: 62
A28: lockers | C28: 410 | D28: =C28 -> 410 | F28: kitchen | G28: 176 | J28: rm 221 | K28: 193
A29: storage | C29: 288 | D29: 288 | F29: hall | G29: 219 | J29: elev | K29: 67 | L29: 67
A30: spa storage for products/ linens | C30: 164 | D30: 164 | F30: kitchen | G30: 481 | J30: conference hall mezz | K30: 3339
A31: laundry | C31: 400 | F31: dining room | G31: 2129 | J31: corridor | K31: 1189 | L31: 1189
A32: hall | C32: 400 | F32: bistro dining | G32: 1811 | J32: freight elev | K32: 62 | L32: 62
A33: hall | C33: 270 | D33: 270 | F33: bar / bistro | G33: 2248
A34: hall | C34: 105 | D34: 105 | F34: stair #2 | G34: 84 | H34: 84 | J34: total gross | K34: =SUM(K3:K33) -> 9980 | L34: =SUM(L2:L33) -> 1542 | N34: total | O34: =SUM(O3:O33) -> 5636
A35: hall | C35: 942 | D35: 942 | F35: terrace
A36: hall | C36: 120 | D36: 120 | F36: terrace
A37: hall | C37: 100 | D37: =C37 -> 100 | F37: stair 1 | G37: 101 | H37: 101
A38: hall | C38: 200 | D38: 200 | F38: connection | G38: 1377 | H38: 1377
A39: hall | C39: 320 | D39: =C39 -> 320 | F39: corridor | G39: 413 | H39: 413
A40: hall | C40: 101 | F40: freight elev | G40: 82 | H40: 83
A41: hall | C41: 82
A44: gross total | C44: 12244 | D44: 9890 | F44: gross total | G44: =SUM(G3:G43) -> 30696 | J44: gross total | K44: =K34 -> 9980 | N44: Gross total | O44: =O34 -> 5636
A45: net space | C45: =D44 -> 9890 | F45: net space | G45: =G44-H46 -> 28558 | J45: net space | K45: =K44-L46 -> 8438 | N45: net space | O45: =O44-P46 -> 4983
A46: support space | D46: =C44-C45 -> 2354 | F46: support space | H46: =SUM(H2:H44) -> 2138 | J46: support space | L46: =L34 -> 1542 | N46: support space | P46: =SUM(P3:P45) -> 653
A49: net space
A50: basement spa/ salon | B50: 9490 | C50: 425 | D50: =B50*C50 -> 4033250
A51: basment / fitness | B51: 400 | C51: 275 | D51: =B51*C51 -> 110000
A52: 1st floor | B52: =G45 -> 28558 | C52: 225 | D52: =B52*C52 -> 6425550
A53: 2nd floor | B53: =K45 -> 8438 | C53: 185 | D53: 1561030
A54: 3rd floor | B54: =O45 -> 4983 | C54: 175 | D54: 872025
A55: 4th floor | D55: 0
A56: pool | B56: 7500 | C56: 150 | D56: 1125000
A57: conference center | B57: 7500 | C57: 225 | D57: 1687500
A58: total | D58: =SUM(D50:D57) -> 15814355
A60: support space
A61: basment | B61: =D46 -> 2354 | C61: 75 | D61: =B61*C61 -> 176550
A62: 1st floor | B62: =H46 -> 2138 | C62: 100 | D62: 213800
A63: 2nd floor | B63: =L46 -> 1542 | C63: 75 | D63: 115650
A64: 3rd floor | B64: =P46 -> 653 | C64: 75 | D64: 48975
A65: 4th floor | D65: 0
A66: pool | B66: 1000 | C66: 125 | D66: 125000
A67: conference center | B67: 2500 | C67: 75 | D67: 187500
A68: total | D68: =SUM(D61:D67) -> 867475
A71: Total hotel | D71: =D58+D68 -> 16681830
B74: =SUM(B50:B73) -> 77056
